bitfinex-derivatives/quotes_ETHF0:USTF0_20240922
["timestamp","ask_amount","ask_price","bid_price","bid_amount"]
[1727009915695,5.10228736,2581.9,2581.8,9.48726]
[1727009915987,0.58341162,2581.9,2581.8,9.48726]
[1727009917490,2.56842678,2581.9,2581.8,9.48726]
[1727009917687,2.56842678,2581.9,2581.6,3.6005]
[1727009917895,2.62209765,2581.8,2581.7,0.38728]
[1727009918188,0.98317162,2581.8,2581.7,0.38728]
[1727009918396,5.50101494,2581.8,2581.7,0.38728]
[1727009918587,2.96798576,2581.8,2581.7,0.38728]
[1727009918786,2.58072576,2581.8,2581.7,0.38728]
[1727009918987,5.11375494,2581.8,2581.7,0.38728]
[1727009919596,2.58072576,2581.8,2581.7,0.38728]
[1727009920192,2.58029877,2581.8,2581.7,0.38728]
[1727009920498,0.59591162,2581.8,2581.7,0.38728]
[1727009923502,2.21877191,2581.8,2581.7,0.38728]
[1727009924596,0.19371162,2581.8,2581.7,0.38728]
[1727009925492,2.21877191,2581.8,2581.7,0.38728]
[1727009925689,0.59821162,2581.8,2581.7,0.38728]
[1727009930707,2.62255312,2581.8,2581.7,0.38728]
[1727009931003,2.62254868,2581.8,2581.7,0.38728]
[1727009932302,2.21804868,2581.8,2581.7,0.38728]
[1727009934001,2.60530868,2581.8,2581.7,0.38728]
[1727009934900,2.60530576,2581.8,2581.7,0.38728]
[1727009935497,2.41158032,2581.8,2581.7,0.38728]
[1727009935707,2.6053089,2581.8,2581.7,0.38728]
[1727009936602,2.6053089,2581.8,2581.6,0.77998]
[1727009936801,0.19372858,2581.7,2581.6,0.77998]
[1727009938106,0.19372858,2581.7,2581.2,0.362]
[1727009938107,5.03552858,2581.7,2581.2,0.362]
[1727009938306,5.61945032,2581.4,2581.2,0.3988]
[1727009938505,0.58106858,2581.3,2581.2,0.78614]
[1727009938703,0.96586858,2581.3,2581.2,0.78614]
[1727009940410,0.96590261,2581.3,2581.2,0.78614]
[1727009941512,2.48260917,2581.3,2581.2,0.78614]
[1727009941710,2.48258937,2581.3,2581.2,0.78614]
[1727009942213,0.96590261,2581.3,2581.2,0.78614]
[1727009942814,2.48230021,2581.3,2581.2,0.78614]
[1727009943921,2.48230337,2581.3,2581.2,0.78614]
[1727009944817,2.48230092,2581.3,2581.2,0.78614]
[1727009945811,2.4823037,2581.3,2581.2,0.78614]
[1727009946223,2.0949637,2581.3,2581.2,0.78614]
[1727009946412,1.9011976,2581.3,2581.2,0.78614]
[1727009947220,2.09495894,2581.3,2581.2,0.78614]
[1727009947414,2.48229894,2581.3,2581.2,0.78614]
[1727009947615,2.2885376,2581.3,2581.2,0.78614]
[1727009948223,2.48229901,2581.3,2581.2,0.78614]
[1727009948922,2.48230067,2581.3,2581.2,0.78614]
[1727009949123,0.96590307,2581.3,2581.2,0.78614]
[1727009952117,2.99022339,2581.3,2581.2,0.78614]
[1727009952422,0.96590307,2581.3,2581.2,0.78614]
[1727009953428,2.99022339,2581.3,2581.2,0.78614]
[1727009953733,0.96590558,2581.3,2581.2,0.78614]
[1727009954339,1.51716441,2581.3,2581.2,0.78614]
[1727009956333,1.0116597,2581.3,2581.2,5.62894]
[1727009956727,1.0116597,2581.3,2581.2,6.01224]
[1727009958827,1.0116597,2581.3,2581.2,6.57002933]
[1727009959033,1.0116597,2581.4,2581.3,2.32404]
[1727009959231,1.0116597,2581.5,2581.4,2.32396]
[1727009959440,1.0116597,2581.6,2581.5,5.22919]
[1727009959632,1.0116597,2581.6,2581.5,5.78697933]
[1727009959934,1.0116597,2581.8,2581.7,0.38728]
[1727009960124,1.0116597,2581.8,2581.7,2.97328]
[1727009960325,1.0116597,2581.8,2581.7,6.84688]
[1727009960932,1.0116597,2581.8,2581.7,3.53102017]
[1727009961137,1.0116597,2581.8,2581.7,7.40462017]
[1727009961325,1.0116597,2581.8,2581.7,7.40463891]
[1727009962735,1.0116597,2581.8,2581.7,6.84688]
[1727009962923,1.0116597,2581.8,2581.7,7.40456052]
[1727009963129,1.0116597,2581.8,2581.7,3.53096052]
[1727009963328,1.0116597,2581.8,2581.7,7.40456052]
[1727009963931,2.41062032,2582.1,2581.7,7.01728052]
[1727009964133,1.01198711,2581.9,2581.8,0.38726]
[1727009964325,0.19369968,2582.0,2581.9,0.38725]
[1727009964638,0.19369733,2582.0,2581.7,2.586]
[1727009964935,0.19369733,2582.0,2581.9,0.38725]
[1727009965129,2.41062032,2582.1,2581.7,2.586]
[1727009965130,0.3863,2582.1,2582.0,0.38723]
[1727009965437,0.57999514,2582.1,2582.0,0.38723]
[1727009972040,0.96721514,2582.1,2582.0,0.38723]
[1727009973042,0.77352,2582.1,2582.0,0.38723]
[1727009973235,0.96722482,2582.1,2582.0,0.38723]
[1727009974142,0.58000482,2582.1,2582.0,0.38723]
[1727009975845,0.58000482,2582.1,2582.0,0.76913]
[1727009976851,0.3863,2582.1,2582.0,0.76913]
[1727009978650,1.39682045,2582.1,2582.0,0.76913]
[1727009978841,0.3863,2582.1,2582.0,0.76913]
[1727009979349,1.39666966,2582.1,2582.0,0.76913]
[1727009981651,0.3863,2582.1,2582.0,0.76913]
[1727009987247,0.3863,2582.1,2582.0,9.86913]
[1727009988953,1.39666966,2582.1,2582.0,9.86913]
[1727009990348,1.39666966,2582.1,2582.0,0.76913]
[1727009995455,0.3863,2582.1,2582.0,0.76913]
[1727009997558,0.5799933,2582.1,2582.0,0.76913]
[1727009997749,0.3863,2582.1,2582.0,0.76913]
[1727009998160,0.57999414,2582.1,2582.0,0.76913]
[1727010000259,2.60431446,2582.1,2582.0,0.76913]
[1727010000767,2.55291047,2582.1,2582.0,0.38723]
[1727010000961,5.08594976,2582.1,2582.0,0.38723]
[1727010001264,0.96722916,2582.1,2582.0,0.38723]
[1727010001462,3.30654918,2582.1,2582.0,0.38723]
[1727010001769,5.47397602,2582.1,2582.0,0.38723]
[1727010001955,5.47397602,2582.1,2581.9,2.526]
[1727010002157,0.19370916,2582.0,2581.9,2.91325]
[1727010002464,0.38726,2581.9,2581.7,2.526]
[1727010002661,2.41517707,2581.8,2581.7,2.91327]
[1727010002862,2.60888623,2581.8,2581.7,3.47165583]
[1727010003059,0.58330916,2581.8,2581.7,3.98371204]
[1727010003461,2.60888623,2581.8,2581.7,2.91327]
[1727010003664,2.60888623,2581.8,2581.7,6.30316503]
[1727010003665,0.19370916,2581.8,2581.7,6.30316503]
[1727010003965,2.40527707,2581.9,2581.7,6.30316503]
[1727010003966,2.02557707,2582.0,2581.9,0.38725]
[1727010004162,0.19369411,2582.0,2581.9,1.86758106]
[1727010004467,2.02557707,2582.1,2582.0,1.35532]
[1727010004668,2.02557707,2582.1,2582.0,4.53900759]
[1727010004859,2.02557707,2582.1,2582.0,8.41180759]
[1727010005060,2.02557707,2582.1,2582.0,8.41180529]
[1727010005264,2.02557707,2582.1,2582.0,7.86557198]
[1727010006065,2.02557707,2582.1,2582.0,3.99277198]
[1727010006262,2.53197134,2582.2,2582.1,0.38722]
[1727010006464,4.70240772,2582.2,2582.1,2.3524805]
[1727010006767,4.70240772,2582.2,2582.1,1.84943597]
[1727010006967,4.70240772,2582.2,2582.1,2.74358106]
[1727010007967,4.70235775,2582.2,2582.1,1.84943597]
[1727010008166,4.70235775,2582.2,2582.1,2.74355049]
[1727010008368,4.70235775,2582.2,2582.1,2.74352413]
[1727010008565,0.19368428,2582.2,2582.1,2.74351968]
[1727010008967,0.19368428,2582.2,2582.1,3.56341023]
[1727010009177,0.19368428,2582.2,2582.1,2.74351968]
[1727010009579,2.93587134,2582.3,2582.2,0.3872]
[1727010009884,2.93587134,2582.3,2582.2,3.98437599]
[1727010010177,5.10617762,2582.3,2582.2,3.98437599]
[1727010010677,5.10607354,2582.3,2582.2,3.98437599]
[1727010011086,5.10607354,2582.3,2582.2,1.45837599]
[1727010011281,8.70106354,2582.3,2582.2,0.55877023]
[1727010011579,6.1690922,2582.3,2582.2,0.3872]
[1727010011777,0.3872,2582.2,2582.0,2.91323]
[1727010011984,2.9553222,2582.1,2581.9,2.91324]
[1727010012180,2.1702022,2582.0,2581.9,2.91324]
[1727010012378,2.1702022,2582.0,2581.9,0.94600519]
[1727010012876,0.78512,2582.1,2581.9,0.38724]
[1727010012877,2.9553222,2582.1,2581.9,0.38724]
[1727010013068,2.1702022,2582.0,2581.9,0.38724]
[1727010013273,2.1702022,2582.0,2581.9,0.94598436]
[1727010013475,2.53411403,2582.0,2581.9,0.94598436]
[1727010013679,4.70431623,2582.0,2581.9,0.94598436]
[1727010015286,4.70364152,2582.0,2581.9,0.94598436]
[1727010016481,4.70364152,2582.0,2581.9,0.38724]
[1727010016787,4.70364152,2582.0,2581.9,0.94590837]
[1727010019379,4.70364152,2582.0,2581.9,0.38724]
[1727010020176,4.70323877,2582.0,2581.9,0.94589474]
[1727010021187,4.70323877,2582.0,2581.9,0.38724]
[1727010021389,4.70323877,2582.0,2581.9,0.94586933]
[1727010022084,5.07103877,2582.0,2581.9,0.94586933]
[1727010022798,0.56150187,2582.0,2581.9,1.45813214]
[1727010024887,0.3678,2582.0,2581.9,1.45813214]
[1727010025186,0.56149578,2582.0,2581.9,1.45813214]
[1727010025885,0.56149578,2582.0,2581.9,0.94586138]
[1727010026287,0.56149578,2582.0,2581.9,1.45813181]
[1727010027587,0.3678,2582.0,2581.9,1.45813181]
[1727010027889,4.8773917,2582.0,2581.9,0.94586138]
[1727010028086,5.07108748,2582.0,2581.9,0.94586138]
[1727010029584,5.07108748,2582.0,2581.9,0.94584788]
[1727010030284,0.56149578,2582.0,2581.9,1.45810058]
[1727010030683,2.39451737,2582.0,2581.9,1.45810058]
[1727010030989,2.58821315,2582.0,2581.9,1.45810058]
[1727010032890,2.58821315,2582.0,2581.9,1.45808459]
[1727010033590,12.15150208,2582.0,2581.5,1.01582278]
[1727010033790,2.53299012,2581.6,2581.4,4.6613572]
[1727010033993,5.10222817,2581.5,2581.4,4.102]
[1727010034190,2.95654805,2581.5,2581.1,2.526]
[1727010034385,2.02624069,2581.3,2581.1,2.526]
[1727010034587,2.22000222,2581.3,2581.1,2.526]
[1727010034793,2.22000222,2581.2,2581.1,2.91337]
[1727010034990,2.02624069,2581.2,2581.1,2.91337]
[1727010035197,2.22000222,2581.2,2581.1,2.526]
[1727010036196,2.22000222,2581.2,2581.1,2.91337]
[1727010036387,0.19376153,2581.2,2581.1,2.91337]
[1727010036893,0.57606153,2581.2,2581.1,2.91337]
[1727010037297,2.09286681,2581.2,2581.1,2.91337]
[1727010037700,0.57606153,2581.2,2581.0,9.1]
[1727010037998,0.57606153,2581.2,2580.7,0.362]
[1727010037999,6.49947086,2581.1,2580.7,0.362]
[1727010038201,1.51647747,2580.8,2580.5,2.526]
[1727010038396,1.41193423,2580.7,2580.4,9.48747]
[1727010038595,1.41193423,2580.7,2580.5,2.526]
[1727010039697,0.401,2580.7,2580.5,2.526]
[1727010041387,0.7855,2580.7,2580.4,9.1]
[1727010041591,0.7855,2580.7,2580.5,2.527]
[1727010041795,1.17294,2580.7,2580.4,9.1]
[1727010042001,4.21873423,2580.5,2580.3,0.3877]
[1727010042496,4.21873423,2580.5,2580.1,0.58362035]
[1727010042497,1.01093423,2580.5,2580.1,2.72311035]
[1727010042799,4.21873423,2580.5,2580.1,3.10821035]
[1727010043097,1.01093423,2580.5,2580.2,0.38749]
[1727010043295,2.18386423,2580.7,2580.1,3.49572035]
[1727010043495,3.2078,2580.5,2580.1,3.49572035]
[1727010043796,3.2078,2580.5,2580.1,3.10821035]
[1727010044098,4.21873423,2580.5,2580.1,3.10821035]
[1727010044395,3.2078,2580.5,2580.1,3.10821035]
[1727010044795,3.2078,2580.4,2580.1,3.10821035]
[1727010044989,0.38747,2580.5,2580.1,0.58121035]
[1727010045290,1.15999,2580.3,2579.9,2.889]
[1727010045495,1.15999,2580.3,2579.9,11.627]
[1727010045496,0.3958,2580.2,2579.9,11.627]
[1727010046295,3.59534,2580.0,2579.7,0.362]
[1727010046493,0.3962,2579.9,2579.4,0.7592]
[1727010046698,0.3962,2579.9,2579.5,0.3876]
[1727010046893,0.3962,2579.9,2579.7,0.38757]
[1727010047202,0.792,2580.2,2579.9,0.38754]
[1727010047393,0.792,2580.2,2580.0,0.7688]
[1727010047793,0.792,2580.2,2580.0,1.15633]
[1727010048796,0.792,2580.2,2580.1,0.38752]
[1727010049104,0.3824,2580.5,2580.0,0.7688]
[1727010049305,3.2078,2580.6,2580.2,0.3875]
[1727010049508,3.2078,2580.6,2580.3,0.38749]
[1727010049898,3.2078,2580.6,2580.4,0.3801]
[1727010050510,0.09,2581.0,2580.6,0.38744]
[1727010050799,1.1676,2581.1,2580.7,0.38743]
[1727010051501,3.2078,2580.9,2580.5,2.9246]
[1727010051703,3.2078,2580.9,2580.5,3.31205]
[1727010051910,3.2078,2580.9,2580.7,0.38742]
[1727010052209,3.2078,2580.9,2580.8,9.1]
[1727010052517,3.2078,2580.9,2580.7,0.38742]
[1727010053010,3.2078,2580.9,2580.7,9.48742]
[1727010057204,3.2078,2580.9,2580.7,11.627]
[1727010058505,3.5952,2580.9,2580.7,9.1]
[1727010058706,3.5952,2580.9,2580.6,2.527]
[1727010058707,3.2078,2580.9,2580.6,2.527]
[1727010058911,3.2078,2580.9,2580.4,0.3801]
[1727010059103,3.2078,2580.6,2580.3,0.362]
[1727010059407,1.1685,2580.5,2580.2,7.0063]
[1727010059608,1.55596,2580.5,2580.2,3.2918]
[1727010059805,0.38748,2580.4,2580.1,9.48751]
[1727010060210,1.1685,2580.5,2580.2,0.38749]
[1727010060399,1.1685,2580.5,2580.3,0.38749]
[1727010060709,1.1685,2580.5,2580.3,0.38748]
[1727010060907,1.1685,2580.5,2580.4,0.38747]
[1727010061411,1.1685,2580.5,2580.3,0.38748]
[1727010063814,1.55596,2580.5,2580.3,0.38748]
[1727010064203,1.1685,2580.5,2580.3,0.38748]
[1727010065216,1.1685,2580.5,2580.4,0.38747]
[1727010065417,0.3958,2580.5,2580.4,0.38747]
[1727010066014,3.2078,2580.7,2580.6,0.38744]
[1727010066217,4.0815,2581.1,2580.9,0.38739]
[1727010066412,3.9915,2581.1,2581.0,0.38738]
[1727010067310,9.03536581,2581.6,2580.5,6.4826]
[1727010067311,3.59512,2581.4,2581.1,0.38736]
[1727010067707,0.3806,2581.3,2581.1,0.38736]
[1727010067905,0.3806,2581.3,2580.9,0.3924]
[1727010068117,0.3806,2581.3,2581.1,0.38736]
[1727010068415,0.3806,2581.3,2581.2,0.38735]
[1727010069007,0.3806,2581.3,2581.1,0.38736]
[1727010070211,0.3806,2581.3,2581.0,2.9128]
[1727010070515,0.3806,2581.3,2581.2,0.38735]
[1727010078120,5.26593423,2581.3,2580.9,2.91438]
[1727010078319,4.21873423,2581.1,2580.9,2.91438]
[1727010078624,0.7789,2581.0,2580.9,2.91438]
[1727010079321,1.78983423,2581.0,2580.9,2.91438]
[1727010082421,1.78983423,2581.0,2580.9,0.38738]
[1727010082619,1.78983423,2581.0,2580.8,2.91441]
[1727010082823,1.37871498,2580.9,2580.8,2.91441]
[1727010084020,1.37871498,2580.9,2580.8,0.38741]
[1727010091526,1.00871498,2580.9,2580.8,0.38741]
[1727010091721,1.51647747,2581.0,2580.9,0.3874]
[1727010091722,1.00871498,2581.0,2580.9,0.3874]
[1727010092428,1.51647747,2581.1,2581.0,0.38738]
[1727010092625,0.193776,2581.1,2581.0,0.38738]
[1727010093027,0.193776,2581.1,2581.0,0.78908]
[1727010094533,2.21574596,2581.1,2581.0,0.78908]
[1727010094731,2.21574656,2581.1,2581.0,0.78908]
[1727010096535,2.02196996,2581.1,2581.0,0.78908]
[1727010096738,2.21574656,2581.1,2581.0,0.78908]
[1727010099633,2.21574868,2581.1,2581.0,0.78908]
[1727010101038,2.02196996,2581.1,2581.0,0.78908]
[1727010101343,1.51600031,2581.2,2581.1,0.38737]
[1727010105038,1.70976082,2581.2,2581.1,0.38737]
[1727010107033,0.19376051,2581.2,2581.1,0.38737]
[1727010107241,1.51552274,2581.2,2581.1,0.38737]
[1727010107432,1.70928325,2581.2,2581.1,0.38737]
[1727010107632,1.70953968,2581.2,2581.1,0.38737]
[1727010107934,0.19376051,2581.2,2581.1,0.38737]
[1727010108138,3.17546996,2581.3,2581.2,0.38735]
[1727010108440,3.36922905,2581.3,2581.2,0.38735]
[1727010108845,1.34725909,2581.3,2581.2,0.38735]
[1727010109044,3.36873113,2581.3,2581.2,0.38735]
[1727010109544,1.34725909,2581.3,2581.2,0.38735]
[1727010110437,3.88005995,2581.3,2581.2,0.38735]
[1727010110636,5.85073202,2581.3,2581.2,0.38735]
[1727010113439,3.31793116,2581.3,2581.2,0.38735]
[1727010113946,5.84749164,2581.3,2581.2,0.38735]
[1727010114948,5.84746884,2581.3,2581.2,0.38735]
[1727010115331,5.84845825,2581.3,2581.2,0.38735]
[1727010117146,4.69495825,2581.3,2581.2,0.38735]
[1727010117341,4.69495825,2581.3,2581.2,9.2777431]
[1727010117544,2.52953768,2581.3,2581.2,11.09133452]
[1727010117845,2.52953768,2581.3,2581.2,21.00491973]
[1727010118343,2.52953768,2581.3,2581.2,20.58339069]
[1727010118537,2.52953768,2581.3,2581.2,27.00491231]
[1727010118737,2.52953768,2581.3,2581.2,28.1089512]
[1727010119243,2.52953768,2581.3,2581.2,27.00491231]
[1727010119647,3.03282929,2581.6,2581.5,1.35559]
[1727010119847,3.03282929,2581.6,2581.5,2.41633392]
[1727010120337,3.03282929,2581.6,2581.5,6.1860031]
[1727010120539,3.03282929,2581.6,2581.5,6.69421985]
[1727010120932,3.03282929,2581.6,2581.5,6.69386288]
[1727010121334,3.03282929,2581.6,2581.5,6.18564613]
[1727010122540,1.01050391,2581.6,2581.5,6.18564613]
[1727010122742,1.51575586,2581.7,2581.6,0.38729]
[1727010122939,1.01048152,2581.7,2581.6,0.38729]
[1727010124343,1.01048152,2581.8,2581.7,0.38728]
[1727010124641,4.72355586,2581.9,2581.7,2.526]
[1727010124846,1.01031231,2581.8,2581.7,2.91328]
[1727010126342,4.21811231,2581.9,2581.8,0.38726]
[1727010127634,4.21811231,2581.9,2581.7,0.38727]
[1727010127635,3.59506,2581.9,2581.7,0.38727]
[1727010127840,5.11081586,2581.9,2581.7,0.38727]
[1727010128042,1.51575586,2581.8,2581.7,0.38727]
[1727010135744,1.90301586,2581.8,2581.7,0.38727]
[1727010135944,1.70948483,2581.8,2581.7,0.38727]
[1727010136139,1.51575586,2581.8,2581.7,0.38727]
[1727010137240,1.70948196,2581.8,2581.7,0.38727]
[1727010137445,1.70948087,2581.8,2581.7,0.38727]
[1727010137645,1.51575586,2581.8,2581.7,0.38727]
[1727010137958,1.70948139,2581.8,2581.7,0.38727]
[1727010138147,1.51575586,2581.8,2581.7,0.38727]
[1727010138455,1.70948139,2581.8,2581.7,0.38727]
[1727010138652,1.51575586,2581.8,2581.7,0.38727]
[1727010139457,1.70948268,2581.8,2581.7,0.38727]
[1727010140652,1.70948145,2581.8,2581.7,0.38727]
[1727010140953,1.70898607,2581.8,2581.7,0.38727]
[1727010141148,0.19372559,2581.8,2581.7,0.38727]
[1727010141347,1.70900462,2581.8,2581.7,0.38727]
[1727010141549,0.19372559,2581.8,2581.7,0.38727]
[1727010141750,0.9682,2581.7,2581.3,3.2078]
[1727010141946,1.51519114,2581.4,2581.0,2.9155]
[1727010142152,4.60529219,2581.2,2581.0,3.30287]
[1727010142350,4.60529219,2581.2,2581.0,2.91337]
[1727010142351,1.77833219,2581.1,2581.0,2.91337]
[1727010142558,2.14363219,2581.1,2581.0,12.01337]
[1727010142952,2.14363219,2581.1,2581.0,9.48737]
[1727010147166,1.1335,2581.1,2581.0,9.48737]
[1727010149764,2.64869114,2581.1,2581.0,9.48737]
[1727010150765,0.38738,2581.0,2580.8,2.525]
[1727010151068,1.51543235,2580.9,2580.8,2.525]
[1727010151266,1.51543235,2580.9,2580.8,11.625]
[1727010151467,1.51543235,2580.9,2580.8,12.01241]
[1727010151860,1.51543235,2580.9,2580.8,2.91241]
[1727010152659,1.70922095,2581.0,2580.9,0.3874]
[1727010152964,0.19378725,2581.0,2580.9,0.3874]
[1727010153160,1.51502459,2581.0,2580.9,0.3874]
[1727010153474,1.51502459,2581.0,2580.9,0.7683]
[1727010153961,2.64852459,2581.1,2581.0,0.38738]
[1727010154763,2.64852459,2581.1,2580.9,0.76829]
[1727010154966,1.0098173,2581.0,2580.9,0.76829]
[1727010159171,1.0098173,2581.2,2581.0,0.38738]
[1727010159390,1.0098173,2581.2,2581.1,0.38737]
[1727010160672,1.4013173,2581.2,2581.1,0.38737]
[1727010163477,0.3915,2581.2,2581.1,0.38737]
[1727010165183,1.90652459,2581.2,2581.1,0.38737]
[1727010167075,0.3915,2581.2,2581.1,0.38737]
[1727010167880,1.90652459,2581.2,2581.1,0.38737]
[1727010168084,0.3915,2581.2,2581.1,0.38737]
[1727010168475,1.90652459,2581.2,2581.1,0.38737]
[1727010169286,0.3915,2581.2,2581.1,0.38737]
[1727010169492,1.90652459,2581.2,2581.1,0.38737]
[1727010173486,2.1002883,2581.2,2581.1,0.38737]
[1727010174784,1.90652459,2581.2,2581.1,0.38737]
[1727010175088,2.10028748,2581.2,2581.1,0.38737]
[1727010176387,1.90652459,2581.2,2581.1,0.38737]
[1727010176886,2.10028626,2581.2,2581.1,0.38737]
[1727010177082,1.90652459,2581.2,2581.1,0.38737]
[1727010177389,2.10028258,2581.2,2581.1,0.38737]
[1727010177584,2.10028257,2581.2,2581.1,0.38737]
[1727010178285,2.10028066,2581.2,2581.1,0.38737]
[1727010179194,1.51502459,2581.2,2581.1,0.38737]
[1727010180990,1.51502459,2581.2,2581.1,0.93910674]
[1727010181293,1.0119371,2581.2,2581.1,0.93910674]
[1727010181793,2.21972459,2581.3,2581.1,0.93910674]
[1727010181794,2.21972459,2581.3,2581.2,0.38735]
[1727010182002,2.41347687,2581.3,2581.2,0.38735]
[1727010182386,0.99425228,2581.3,2581.2,0.38735]
[1727010183287,0.99425404,2581.3,2581.2,0.38735]
[1727010183691,0.99425404,2581.3,2581.2,0.93932082]
[1727010183903,0.99425404,2581.3,2581.2,3.46332082]
[1727010185797,3.01526186,2581.3,2581.2,3.83592082]
[1727010186197,3.01526186,2581.3,2581.2,4.34453471]
[1727010186895,3.01526186,2581.3,2581.2,3.28395]
[1727010187102,3.01526186,2581.3,2581.2,4.34485903]
[1727010187700,3.01526186,2581.3,2581.2,8.21940684]
[1727010188501,3.01525676,2581.3,2581.2,8.21940684]
[1727010190095,0.19374894,2581.3,2581.2,16.07162863]
[1727010190304,2.02100782,2581.5,2581.4,1.35564]
[1727010190497,2.02100782,2581.6,2581.4,2.04192661]
[1727010190703,6.24062929,2582.1,2581.5,5.4427192]
[1727010190704,2.02100782,2581.7,2581.5,5.4427192]
[1727010190905,2.89004722,2581.9,2581.5,5.4427192]
[1727010190906,2.02100782,2581.8,2581.7,0.38728]
[1727010191101,2.21471768,2581.8,2581.7,2.91128]
[1727010191492,0.19370986,2581.8,2581.7,3.46357404]
[1727010193104,2.38570782,2581.9,2581.8,0.38726]
[1727010193300,0.55840705,2581.9,2581.8,0.38726]
[1727010195509,0.55840703,2581.9,2581.8,0.38726]
[1727010196001,0.3647,2581.9,2581.8,0.38726]
[1727010196205,1.38594671,2582.0,2581.9,0.38725]
[1727010196394,1.37664671,2582.1,2582.0,0.38723]
[1727010196594,1.01134671,2582.1,2582.0,0.38723]
[1727010196797,1.01134671,2582.1,2582.0,13.36003]
[1727010197001,1.1362,2582.3,2582.2,0.3872]
[1727010197198,1.1362,2582.3,2582.2,2.9112]
[1727010197898,2.14733735,2582.3,2582.2,2.9112]
[1727010198105,1.1362,2582.3,2582.2,2.9112]
[1727010198300,1.0249,2582.3,2582.2,2.9112]
[1727010198905,2.03603735,2582.3,2582.2,2.9112]
[1727010199105,1.0249,2582.3,2582.2,2.9112]
[1727010199407,2.03603735,2582.3,2582.2,2.9112]
[1727010200206,1.0249,2582.3,2582.2,2.9112]
[1727010200995,2.03603735,2582.3,2582.2,2.9112]
[1727010201201,1.0249,2582.3,2582.2,2.9112]
[1727010208708,1.01113735,2582.5,2582.4,0.38717]
[1727010208912,0.3818,2582.5,2582.4,0.38717]
[1727010212221,0.3818,2582.5,2582.3,0.38718]
[1727010212512,0.3818,2582.5,2582.4,0.38717]
[1727010225717,3.2078,2582.7,2582.6,0.38714]
[1727010225718,1.01113735,2582.7,2582.6,0.38714]
[1727010225918,1.01113735,2582.7,2582.4,6.394]
[1727010225919,1.01113735,2582.8,2582.7,0.38713]
[1727010226315,1.01113735,2582.8,2582.7,2.90913]
[1727010226520,0.3871,2582.9,2582.7,2.90913]
[1727010226724,0.3871,2582.9,2582.7,0.38713]
[1727010227026,0.37,2582.8,2582.7,0.38713]
[1727010227225,0.75711,2582.8,2582.6,0.38714]
[1727010227416,3.2078,2582.7,2582.6,2.90814]
[1727010228730,3.40145761,2582.7,2582.6,2.90814]
[1727010228926,0.37,2582.8,2582.7,0.38713]
[1727010229124,2.58466043,2582.8,2582.7,0.38713]
[1727010232234,2.58466548,2582.8,2582.7,0.38713]
[1727010232623,2.58466548,2582.8,2582.6,2.521]
[1727010232823,3.2078,2582.7,2582.6,2.90814]
[1727010233724,3.40145038,2582.7,2582.6,2.90814]
[1727010234124,3.40145038,2582.7,2582.6,0.38714]
[1727010234330,3.40145038,2582.7,2582.6,2.90814]
[1727010235331,2.2146582,2582.7,2582.6,2.90814]
[1727010236431,2.2146582,2582.7,2582.6,0.38714]
[1727010237022,2.21466115,2582.7,2582.6,0.38714]
[1727010238225,0.19365333,2582.7,2582.6,0.38714]
[1727010238535,2.15310073,2582.7,2582.6,0.38714]
[1727010238735,0.19365333,2582.7,2582.6,0.38714]
[1727010239234,5.06416999,2582.7,2582.6,0.38714]
[1727010239930,5.06416999,2582.7,2582.2,0.968]
[1727010239931,8.27196999,2582.7,2582.1,9.6554618]
[1727010240131,4.67885629,2582.6,2582.5,0.38715]
[1727010240925,4.67973929,2582.6,2582.5,0.38715]
[1727010242231,2.15439207,2582.6,2582.5,0.38715]
[1727010243135,2.54154207,2582.6,2582.4,0.38717]
[1727010243336,5.4455283,2582.5,2582.4,0.38717]
[1727010243526,2.91079207,2582.5,2582.4,0.38717]
[1727010244139,2.91079207,2582.5,2582.4,0.93947972]
[1727010244429,3.29112445,2582.5,2582.4,0.93947972]
[1727010244632,5.44551652,2582.5,2582.4,0.93947972]
[1727010245538,5.44731022,2582.5,2582.4,0.93947972]
[1727010250239,3.29112445,2582.5,2582.4,0.93947972]
[1727010250741,5.44776879,2582.5,2582.4,0.93947972]
[1727010251637,5.44776879,2582.5,2582.4,1.44823367]
[1727010251839,0.1936692,2582.5,2582.4,2.33214308]
[1727010252039,2.53472445,2582.6,2582.5,0.38716]
[1727010252237,2.15716343,2582.6,2582.5,1.44822367]
[1727010252541,2.15716343,2582.6,2582.5,2.33209398]
[1727010252542,0.19365169,2582.6,2582.5,2.33209398]
[1727010253738,0.19365169,2582.6,2582.5,1.44822367]
[1727010253739,4.69192071,2582.6,2582.5,1.44822367]
[1727010254137,4.69192071,2582.6,2582.5,2.33218339]
[1727010254343,4.69192071,2582.6,2582.5,1.44822367]
[1727010254741,2.53472445,2582.6,2582.5,1.44822367]
[1727010255047,2.53472445,2582.6,2582.5,2.3321715]
[1727010255441,1.50259445,2582.7,2582.6,1.35501]
[1727010255640,2.02928541,2582.9,2582.7,0.96783]
[1727010255840,2.02928541,2582.9,2582.8,12.04084975]
[1727010256039,2.02928541,2582.9,2582.8,24.24125644]
[1727010256040,0.19361255,2582.9,2582.8,24.24125644]
[1727010256241,2.02948575,2583.0,2582.9,0.3871]
[1727010256438,0.19361055,2583.0,2582.9,2.75894011]
[1727010256746,2.22213157,2583.0,2582.9,1.9445355]
[1727010256946,2.22213157,2583.0,2582.9,9.1]
[1727010257144,0.19361638,2583.0,2582.9,10.5355407]
[1727010257452,2.02851519,2583.1,2583.0,0.38708]
[1727010257653,2.02851519,2583.1,2583.0,0.93921104]
[1727010258347,2.02851519,2583.2,2583.1,0.38707]
[1727010258741,2.02851519,2583.2,2583.1,9.48707]
[1727010260249,2.02851519,2583.3,2583.2,0.38705]
[1727010260447,2.02851519,2583.3,2583.2,0.77415]
[1727010261260,1.51924559,2583.3,2583.2,6.36499]
[1727010261554,1.01290261,2583.3,2583.2,6.916277]
[1727010262244,1.01290261,2583.4,2583.3,0.38704]
[1727010262440,1.01290261,2583.4,2583.3,2.90704]
[1727010264149,1.78540261,2583.5,2583.4,0.38702]
[1727010264552,0.7725,2583.5,2583.4,0.38702]
[1727010264852,2.29185392,2583.5,2583.4,0.38702]
[1727010266248,1.7839352,2583.5,2583.4,0.38702]
[1727010268248,1.0114352,2583.5,2583.4,0.38702]
[1727010268450,1.0114352,2583.6,2583.5,0.38701]